bitfinex/quotes_SOLUSD_20241117
["timestamp","ask_amount","ask_price","bid_price","bid_amount"]
[1731846462613,20.0,233.43,233.26,20.0]
[1731846462799,14.993,233.44,233.26,20.0]
[1731846463001,14.993,233.44,233.28,20.0]
[1731846463911,20.09367462,233.49,233.29,15.0027]
[1731846464093,36.4029,233.5,233.31,43.5675]
[1731846464405,36.5029,233.5,233.31,43.5675]
[1731846464796,24.027864,233.49,233.31,43.5675]
[1731846465198,20.09367462,233.46,233.31,47.8535]
[1731846465498,20.0,233.44,233.31,47.8535]
[1731846465704,23.776884,233.43,233.31,47.8535]
[1731846466900,4.2841,233.42,233.31,47.8535]
[1731846467607,23.87055862,233.41,233.31,43.5675]
[1731846467902,23.776884,233.41,233.31,43.5675]
[1731846469494,4.2844,233.4,233.31,43.5675]
[1731846470011,4.2844,233.4,233.32,20.0]
[1731846471186,28.060384,233.45,233.32,24.2858]
[1731846472204,23.776884,233.43,233.32,15.0006]
[1731846472592,23.87055862,233.44,233.32,15.0006]
[1731846474612,23.87055862,233.44,233.32,10.7148]
[1731846475409,23.776884,233.42,233.32,15.0007]
[1731846477503,4.2843,233.41,233.32,15.0007]
[1731846477691,23.776884,233.4,233.32,15.0007]
[1731846478011,23.776884,233.36,233.31,43.5675]
[1731846478212,4.2843,233.41,233.31,43.5675]
[1731846478393,4.2843,233.41,233.31,58.5688]
[1731846479409,20.0,233.45,233.31,58.5688]
[1731846479602,23.776884,233.42,233.31,58.5688]
[1731846479911,23.776884,233.43,233.32,20.0]
[1731846480692,4.2841,233.42,233.33,4.2857]
[1731846482414,23.87055862,233.39,233.31,43.5675]
[1731846482609,23.87055862,233.35,233.25,30.5783]
[1731846482796,23.776884,233.33,233.25,30.5783]
[1731846482996,23.776884,233.31,233.25,30.5783]
[1731846483400,23.776884,233.29,233.25,30.5783]
[1731846484522,23.776884,233.38,233.25,34.8654]
[1731846484719,20.0,233.37,233.25,34.8654]
[1731846485090,4.2846,233.39,233.25,34.8654]
[1731846485493,4.2846,233.39,233.25,45.5835]
[1731846485691,0.09367462,233.38,233.25,30.5783]
[1731846485908,0.21916462,233.36,233.25,30.5783]
[1731846486109,20.0,233.33,233.25,30.5783]
[1731846486315,23.776884,233.32,233.25,30.5783]
[1731846486517,20.0,233.35,233.25,30.5783]
[1731846486905,23.776884,233.34,233.25,30.5783]
[1731846487223,23.776884,233.36,233.25,45.5835]
[1731846487600,20.0,233.37,233.25,45.5835]
[1731846488001,20.0,233.35,233.25,41.2964]
[1731846488309,20.0,233.33,233.25,41.2964]
[1731846489031,4.2859,233.32,233.25,41.2964]
[1731846489730,23.776884,233.31,233.25,30.5783]
[1731846490224,20.0,233.4,233.25,30.5783]
[1731846490407,0.09367462,233.4,233.25,30.5783]
[1731846491026,4.2846,233.39,233.25,45.5835]
[1731846491520,23.776884,233.38,233.25,45.5835]
[1731846491728,23.776884,233.36,233.25,45.5835]
[1731846492036,23.776884,233.36,233.25,41.2964]
[1731846493316,4.2854,233.35,233.25,41.2964]
[1731846493514,23.776884,233.34,233.25,45.5836]
[1731846493703,14.9935,233.44,233.26,20.0]
[1731846493908,5.60235765,233.49,233.31,20.1]
[1731846493909,4.2828,233.49,233.31,20.1]
[1731846494103,4.2828,233.49,233.33,0.1]
[1731846494321,4.2828,233.49,233.35,0.1]
[1731846494528,4.2828,233.49,233.37,20.0]
[1731846495119,10.7048,233.54,233.38,14.9969]
[1731846495733,23.776884,233.52,233.38,14.9969]
[1731846496120,28.059484,233.5,233.38,14.9969]
[1731846496617,4.2823,233.52,233.39,20.0]
[1731846496930,14.9835,233.59,233.4,30.1789]
[1731846497711,14.9835,233.59,233.41,20.1]
[1731846497912,5.70235765,233.58,233.4,30.1789]
[1731846498127,0.09367462,233.55,233.4,30.1789]
[1731846498320,0.09367462,233.53,233.4,30.1789]
[1731846498633,5.69603227,233.53,233.4,30.1789]
[1731846499136,20.0,233.5,233.4,30.1789]
[1731846499332,23.776884,233.47,233.4,30.1789]
[1731846500315,20.0,233.44,233.4,30.1789]
[1731846500712,4.2833,233.46,233.34,30.1789]
[1731846500713,20.0,233.42,233.34,30.1789]
[1731846503030,4.2843,233.41,233.34,30.1789]
[1731846503337,22.9122,233.51,233.34,30.1789]
[1731846503518,20.0,233.48,233.34,45.1783]
[1731846503722,23.776884,233.45,233.34,45.1783]
[1731846505239,4.2837,233.44,233.34,45.1783]
[1731846507137,20.0,233.42,233.34,30.1789]
[1731846508438,4.2843,233.41,233.34,30.1789]
[1731846516439,23.776884,233.4,233.34,30.1789]
[1731846516641,23.776884,233.38,233.34,30.1789]
[1731846516842,23.776884,233.38,233.27,30.9985]
[1731846517736,4.285,233.37,233.27,35.2853]
[1731846518643,24.285,233.37,233.27,35.2853]
[1731846518843,23.776884,233.34,233.27,30.9985]
[1731846519043,20.0,233.33,233.27,30.9985]
[1731846519251,23.776884,233.28,233.22,30.9985]
[1731846519433,20.0,233.25,233.22,30.9985]
[1731846519752,20.0,233.25,233.14,27.9221]
[1731846519753,23.776884,233.24,233.15,30.9985]
[1731846519934,20.0,233.21,233.15,30.9985]
[1731846520328,20.0,233.19,233.09,43.9086]
[1731846520547,20.0,233.15,233.09,30.9985]
[1731846521130,23.776884,233.14,233.05,30.9985]
[1731846521330,20.0,233.13,233.05,30.9985]
[1731846521524,0.25098,233.22,233.05,35.2893]
[1731846521727,23.776884,233.2,233.06,4.2906]
[1731846521927,20.0,233.19,233.06,4.2906]
[1731846522127,23.776884,233.18,233.06,4.2906]
[1731846522551,20.0,233.17,233.06,4.2906]
[1731846522738,23.776884,233.16,233.06,4.2906]
[1731846522938,7.31243222,233.25,233.05,30.9985]
[1731846523251,4.2877,233.22,233.1,7.27293919]
[1731846524330,4.38087462,233.25,233.1,7.27293919]
[1731846524942,20.0,233.23,233.1,7.27293919]
[1731846525253,20.0,233.21,233.1,2.98313919]
[1731846525450,20.0,233.19,233.1,2.98313919]
[1731846525642,23.776884,233.24,233.1,2.98313919]
[1731846525948,4.2861,233.31,233.13,20.0]
[1731846526547,4.2861,233.31,233.15,20.0]
[1731846526848,4.2861,233.31,233.16,0.1]
[1731846527240,4.2861,233.31,233.15,20.0]
[1731846528038,23.87055862,233.3,233.15,20.0]
[1731846528232,23.776884,233.28,233.15,20.0]
[1731846528535,23.776884,233.28,233.14,36.4586]
[1731846528536,23.776884,233.26,233.16,4.2889]
[1731846528753,20.0,233.25,233.16,4.2889]
[1731846529259,20.0,233.25,233.14,15.0122]
[1731846529260,23.776884,233.24,233.14,15.0122]
[1731846530448,4.2876,233.23,233.14,15.0122]
[1731846530657,24.2876,233.23,233.14,10.7231]
[1731846533833,4.2876,233.23,233.14,10.7231]
[1731846535157,24.2863,233.3,233.14,10.7231]
[1731846535655,4.2863,233.3,233.14,10.7231]
[1731846536354,10.7152,233.32,233.15,20.0]
[1731846536532,10.7152,233.32,233.14,10.7231]
[1731846536734,0.09367462,233.31,233.14,10.7231]
[1731846537560,4.2863,233.3,233.15,20.1]
[1731846537743,4.2863,233.3,233.14,10.7231]
[1731846538058,0.09367462,233.29,233.14,10.7231]
[1731846538841,43.99604862,233.29,233.14,10.7231]
[1731846539359,20.0,233.26,233.14,10.7231]
[1731846539657,23.776884,233.25,233.14,10.7231]
[1731846540668,0.21916462,233.22,233.12,44.4984]
[1731846540845,20.09367462,233.22,233.12,32.1213]
[1731846541364,20.0,233.2,233.12,32.1213]
[1731846541566,23.776884,233.19,233.12,32.1213]
[1731846542044,20.0,233.18,233.12,32.1213]
[1731846542248,23.776884,233.17,233.12,32.1213]
[1731846542450,23.776884,233.17,233.0,1.1]
[1731846542451,0.21916462,233.12,233.0,1.1]
[1731846542761,23.87055862,233.1,233.0,1.1]
[1731846543061,20.0,233.09,233.0,1.1]
[1731846543361,23.87055862,233.1,233.0,1.1]
[1731846543362,23.776884,233.06,233.0,1.1]
[1731846543657,20.0,233.05,233.0,1.1]
[1731846543860,4.2898,233.11,233.0,16.1212]
[1731846544043,23.776884,233.1,233.0,16.1212]
[1731846544245,4.2895,233.13,233.0,16.1212]
[1731846544445,4.2885,233.18,233.01,20.0]
[1731846544657,4.2885,233.18,233.03,20.0]
[1731846544861,4.2885,233.18,233.04,12.4936]
[1731846545177,4.2872,233.25,233.06,33.2443]
[1731846545665,0.09367462,233.24,233.07,20.0]
[1731846545965,4.2872,233.25,233.07,20.0]
[1731846546363,23.87055862,233.24,233.08,15.0162]
[1731846546547,20.0,233.23,233.09,20.0]
[1731846546753,23.776884,233.22,233.09,20.0]
[1731846546951,0.21916462,233.2,233.06,37.5349]
[1731846547162,0.09367462,233.2,233.06,37.5349]
[1731846547468,20.0,233.17,233.06,37.5349]
[1731846548041,20.0,233.17,233.06,48.2617]
[1731846548449,10.7181,233.25,233.06,48.2617]
[1731846548450,4.288,233.21,233.06,48.2617]
[1731846549268,4.288,233.21,233.07,20.0]
[1731846549470,0.09367462,233.24,233.08,15.0162]
[1731846549672,23.87055862,233.24,233.09,20.0]
[1731846549963,20.0,233.23,233.09,20.0]
[1731846550166,4.2872,233.25,233.1,31.5723]
[1731846550343,4.2863,233.3,233.13,20.0]
[1731846550763,0.09367462,233.29,233.13,20.0]
[1731846551456,0.09367462,233.29,233.14,15.0123]
[1731846551457,23.776884,233.27,233.14,15.0123]
[1731846551666,23.776884,233.25,233.14,15.0123]
[1731846553456,4.2854,233.35,233.17,20.0]
[1731846553647,11.3857753,233.35,233.17,20.0]
[1731846554573,20.0,233.34,233.18,15.0098]
[1731846555059,20.0,233.32,233.18,15.0098]
[1731846555361,12.266,233.39,233.18,15.0098]
[1731846555362,4.2847,233.39,233.23,20.0]
[1731846556074,4.2847,233.39,233.22,33.0082]
[1731846556457,23.776884,233.38,233.23,20.0]
[1731846557155,28.062084,233.36,233.24,15.0059]
[1731846557544,23.776884,233.36,233.25,20.0]
[1731846557950,4.2839,233.43,233.25,20.0]
[1731846558266,4.2839,233.43,233.24,15.0059]
[1731846558267,25.7035,233.43,233.24,10.7185]
[1731846558473,14.9937,233.43,233.25,20.0]
[1731846558851,20.09367462,233.42,233.25,20.0]
[1731846559468,4.2843,233.41,233.26,10.7176]
[1731846560049,20.0,233.39,233.26,10.7176]
[1731846560267,23.776884,233.38,233.26,10.7176]
[1731846560469,4.285,233.37,233.26,10.7176]
[1731846560675,20.0,233.35,233.22,37.2959]
[1731846560889,23.776884,233.34,233.22,37.2959]
[1731846561183,23.776884,233.32,233.22,48.0153]
[1731846562577,4.2861,233.31,233.22,48.0153]
[1731846563975,23.776884,233.3,233.22,33.0082]
[1731846564161,20.0,233.29,233.22,33.0082]
[1731846565463,4.2866,233.28,233.22,33.0082]
[1731846565886,23.776884,233.35,233.22,37.2958]
[1731846566888,23.776884,233.35,233.22,48.0152]
[1731846567096,28.062584,233.33,233.22,48.0152]
[1731846568492,20.0,233.32,233.22,48.0152]
[1731846568671,14.9947,233.42,233.23,20.0]
[1731846569070,4.2841,233.42,233.23,20.1]
[1731846570398,20.0,233.44,233.24,15.0059]
[1731846570592,20.0,233.42,233.25,20.0]
[1731846571189,20.0,233.4,233.25,20.0]
[1731846571697,20.0,233.44,233.25,20.0]
[1731846571999,20.0,233.42,233.25,20.0]
[1731846572204,20.0,233.4,233.25,20.0]
[1731846572388,23.776884,233.39,233.27,20.0]
[1731846573199,23.776884,233.4,233.27,20.0]
[1731846574583,4.2846,233.39,233.28,15.0033]
[1731846576302,4.2846,233.39,233.28,10.7167]
[1731846576997,4.2846,233.39,233.29,31.4095]
[1731846577380,4.283,233.48,233.32,20.0]
[1731846578507,14.9882,233.52,233.33,15.0001]
[1731846578682,23.87055862,233.5,233.33,15.0001]
[1731846578883,20.0,233.49,233.33,15.0001]
[1731846579080,20.0,233.47,233.33,15.0001]
[1731846579707,28.060184,233.46,233.33,15.0001]
[1731846580285,23.776884,233.44,233.33,10.7144]
[1731846580601,23.776884,233.42,233.33,10.7144]
[1731846581103,20.0,233.41,233.31,12.8064]
[1731846581288,20.0,233.39,233.31,12.8064]
[1731846581488,4.285,233.37,233.31,12.8064]
[1731846582390,20.0,233.35,233.29,31.4095]
[1731846582597,23.776884,233.32,233.29,31.4095]
[1731846583115,23.776884,233.32,233.24,23.5249]
[1731846583410,23.776884,233.32,233.24,54.9344]
[1731846583912,4.2861,233.31,233.24,54.9344]
[1731846586004,4.2861,233.31,233.24,44.2159]
[1731846586210,4.2861,233.31,233.24,31.4095]
[1731846587502,23.776884,233.3,233.24,31.4095]
[1731846589395,24.2865,233.29,233.24,31.4095]
[1731846589616,23.776884,233.26,233.17,31.4095]
[1731846589991,20.0,233.25,233.17,31.4095]
[1731846590405,4.2874,233.24,233.17,31.4095]
[1731846591894,4.2874,233.24,233.12,32.1382]
[1731846591895,20.0,233.2,233.12,32.1382]
[1731846592401,20.0,233.18,233.12,32.1382]
[1731846592595,23.776884,233.19,233.12,32.1382]
[1731846593611,4.2885,233.18,233.12,32.1382]
[1731846594403,23.776884,233.17,233.12,32.1382]
[1731846595614,4.2889,233.16,233.06,32.2445]
[1731846596113,10.9522929,233.29,233.06,32.2445]
[1731846596114,10.7165,233.29,233.07,20.0]
[1731846596505,4.2861,233.31,233.07,20.0]
[1731846597126,15.0014,233.31,233.1,32.2445]
[1731846597301,15.0014,233.31,233.12,20.0]
[1731846597709,0.09367462,233.3,233.13,15.013]
[1731846598225,15.0014,233.31,233.14,20.0]
[1731846598429,20.0,233.3,233.14,20.0]
[1731846598619,0.21916462,233.27,233.13,10.7236]
[1731846598827,20.21916462,233.27,233.13,10.7236]
[1731846599629,23.776884,233.26,233.13,10.7236]
[1731846599809,20.0,233.25,233.13,10.7236]
[1731846600004,20.0,233.25,233.11,13.1975]
[1731846600005,0.09367462,233.24,233.11,13.1975]
[1731846600826,4.2876,233.23,233.11,28.2117]
[1731846601030,23.776884,233.22,233.11,28.2117]
[1731846601506,20.0,233.21,233.11,28.2117]
[1731846601821,28.064984,233.2,233.11,28.2117]
[1731846603031,5.34993525,233.37,233.11,28.2117]
[1731846603221,4.2863,233.3,233.11,49.6608]
[1731846603728,4.2863,233.3,233.12,20.0]
[1731846604113,4.2863,233.3,233.16,20.0]
[1731846604924,7.07975293,233.37,233.16,20.0]
[1731846605122,4.2852,233.36,233.17,15.0104]
[1731846605328,20.0,233.34,233.17,15.0104]
[1731846605628,20.0,233.32,233.17,15.0104]
[1731846605831,20.0,233.3,233.17,15.0104]
[1731846606014,23.776884,233.29,233.17,15.0104]
[1731846606215,23.776884,233.31,233.17,15.0104]
[1731846606418,14.9982,233.36,233.17,36.5539]
[1731846606634,15.0982,233.36,233.18,12.4131]
[1731846606930,0.09367462,233.35,233.18,12.4131]
[1731846607228,0.19367462,233.33,233.15,32.8323]
[1731846607407,0.09367462,233.27,233.09,4.29]
[1731846607607,20.09367462,233.27,233.09,4.29]
[1731846607806,0.09367462,233.25,233.09,4.29]
[1731846608008,23.776884,233.22,233.08,43.5582]
[1731846608221,20.0,233.21,233.08,47.8485]
[1731846608533,20.0,233.19,233.08,47.8485]
[1731846608918,23.776884,233.18,233.08,47.8485]
[1731846609128,4.2889,233.16,233.08,32.8323]
[1731846609537,23.776884,233.15,233.08,32.8323]
[1731846610328,20.0,233.17,233.09,4.2901]
[1731846610516,4.2886,233.18,233.09,4.2901]
[1731846610720,23.776884,233.17,233.09,4.2901]
[1731846611546,20.0,233.16,233.08,32.8323]
[1731846611837,28.065684,233.17,233.01,31.1419]
[1731846611838,20.0,233.14,233.01,31.1419]
[1731846612025,28.065684,233.17,233.01,31.1419]
[1731846612432,10.7194,233.23,233.01,31.2419]
[1731846612433,23.776884,233.18,233.01,31.2419]
[1731846612628,28.065484,233.18,233.01,31.2419]
[1731846613132,28.065484,233.18,233.02,20.0]
[1731846613537,28.065484,233.18,233.04,20.0]
[1731846613837,23.776884,233.19,233.04,20.0]
[1731846614419,23.776884,233.19,233.03,36.4758]
[1731846614812,20.0,233.18,233.03,36.4758]
[1731846615017,23.776884,233.17,233.03,36.4758]
[1731846615642,28.065684,233.17,233.03,36.4758]
[1731846616727,20.0,233.14,233.03,15.0194]
[1731846616932,23.776884,233.13,233.03,15.0194]
[1731846617165,20.0,233.12,233.03,15.0194]
[1731846617331,23.776884,233.15,233.03,15.0194]
[1731846617529,20.0,233.15,233.03,15.0194]
[1731846617728,23.776884,233.14,233.03,15.0194]
[1731846617934,23.776884,233.12,233.01,31.1419]
[1731846618441,20.0,233.11,233.01,31.1419]
[1731846618740,4.29,233.1,233.01,31.1419]
[1731846619140,23.776884,233.07,233.01,31.1419]
[1731846619319,20.0,233.06,233.01,31.1419]
[1731846619525,23.776884,233.03,233.0,1.1]
[1731846620330,43.776884,233.01,233.0,1.1]
[1731846620532,43.87055862,233.01,233.0,1.1]
[1731846620730,48.16215862,233.01,233.0,1.1]
[1731846621127,48.068484,233.01,233.0,1.1]
[1731846621541,48.28764862,233.01,233.0,1.1]
[1731846622623,48.41313862,233.01,233.0,1.1]
[1731846624531,78.41313862,233.01,233.0,1.1]
[1731846624740,78.28764862,233.01,233.0,1.1]
[1731846624942,78.41313862,233.01,233.0,1.1]
[1731846627629,78.068484,233.01,233.0,1.1]
[1731846627833,4.2916,233.01,233.0,1.1]
[1731846628848,0.09367462,233.05,233.0,1.1]
[1731846629228,30.0,233.01,233.0,1.1]
[1731846629757,53.776884,233.01,233.0,1.1]
[1731846630146,43.776884,233.01,233.0,1.1]
[1731846630330,23.776884,233.01,233.0,1.1]
[1731846630843,28.068484,233.01,233.0,1.1]
[1731846631247,4.2903,233.08,233.0,1.1]
[1731846632739,23.776884,233.07,233.0,1.1]
[1731846632940,23.776884,233.05,233.0,1.1]
[1731846633452,43.776884,233.01,233.0,1.1]
[1731846633658,43.99604862,233.01,233.0,1.1]
[1731846633849,44.12153862,233.01,233.0,1.1]
[1731846634847,48.41313862,233.01,233.0,1.1]
[1731846635729,78.41313862,233.01,233.0,1.1]
[1731846636636,48.41313862,233.01,233.0,1.1]
[1731846639165,48.41313862,233.01,232.96,0.4557935]
[1731846639166,0.09367462,232.98,232.96,0.4557935]
[1731846639344,20.09367462,232.98,232.96,0.4557935]
[1731846639689,24.12153862,232.97,232.96,0.4557935]
[1731846639840,44.12153862,232.97,232.96,0.4557935]
[1731846640041,43.776884,232.97,232.96,0.4557935]
[1731846641458,48.069184,232.97,232.96,0.4557935]
[1731846642651,20.0,232.94,232.89,31.5317]
[1731846642851,23.776884,232.93,232.89,31.5317]
[1731846643047,20.0,232.92,232.89,31.5317]
[1731846643362,23.776884,232.91,232.89,31.5317]
[1731846643554,20.0,232.9,232.89,31.5317]
[1731846643750,48.070484,232.9,232.85,12.5846]
[1731846643953,4.2927,232.95,232.85,12.5846]
[1731846644265,20.0,232.93,232.85,12.5846]
[1731846644464,4.2927,232.95,232.85,12.5846]
[1731846644757,4.2927,232.95,232.84,31.4935]
[1731846644758,20.0,232.94,232.84,31.4935]
[1731846645545,20.0,232.92,232.84,31.4935]
[1731846645748,20.0,232.9,232.84,31.4935]
[1731846647541,20.0,232.88,232.73,0.4557935]
[1731846647751,23.776884,232.85,232.78,31.4935]
[1731846647957,23.776884,232.83,232.78,31.4935]
[1731846649570,4.2925,232.96,232.78,46.529]
[1731846649746,20.0,232.95,232.78,46.529]
[1731846650549,15.0239,232.96,232.78,46.529]
[1731846651570,0.1,233.03,232.84,44.057]
[1731846651571,4.2912,233.03,232.84,44.057]
[1731846651749,4.2907,233.06,232.85,15.0311]
[1731846652361,0.09367462,233.05,232.85,15.0311]
[1731846652561,4.2907,233.06,232.85,15.0311]
[1731846652761,15.0178,233.06,232.85,15.0311]
[1731846653076,23.776884,233.03,232.85,15.0311]
[1731846653373,4.29,233.1,232.91,12.969]
[1731846653748,4.29,233.1,232.92,31.188]
[1731846654149,4.29,233.1,232.92,31.088]
[1731846655149,20.09367462,233.11,232.93,15.0259]
[1731846655364,20.0,233.09,232.93,15.0259]
[1731846655567,20.0,233.11,232.93,15.0259]
[1731846656362,4.29,233.1,232.93,15.0259]
[1731846656756,23.776884,233.09,232.93,15.0259]
[1731846657269,20.0,233.08,232.93,15.0259]
[1731846657452,4.2905,233.07,232.93,15.0259]
[1731846659054,23.776884,233.06,232.93,15.0259]
[1731846659254,23.776884,233.04,232.92,31.088]
[1731846659471,20.0,233.03,232.92,31.088]
[1731846659775,20.0,233.01,232.92,31.088]
[1731846661183,4.2918,233.0,232.92,31.088]
[1731846661352,4.2918,233.0,232.92,35.3812]
[1731846662374,23.776884,232.99,232.92,31.088]
[1731846663378,4.2922,232.98,232.92,31.088]
[1731846664184,4.2922,232.98,232.88,10.7349]
[1731846664484,20.0,233.02,232.88,10.7349]
[1731846664669,23.776884,232.98,232.88,10.7349]
[1731846664866,20.0,232.97,232.86,33.2326]
[1731846665084,23.776884,232.96,232.86,33.2326]
[1731846665256,15.0207,233.01,232.86,48.2629]
[1731846665452,20.0,232.99,232.86,48.2629]
[1731846665658,23.776884,232.98,232.86,48.2629]
[1731846666078,23.776884,232.98,232.91,0.2917553]
[1731846666458,4.2923,232.97,232.91,0.2917553]
[1731846667371,21.4553,233.05,232.91,0.2917553]
[1731846667576,48.067984,233.04,232.91,0.2917553]
[1731846667781,48.067984,233.04,232.91,4.5851553]
[1731846667967,28.067984,233.04,232.91,4.5851553]
[1731846668171,4.29,233.1,232.93,12.3325]
[1731846668576,10.7248,233.11,232.94,15.0252]
[1731846669721,7.85663639,233.2,233.0,33.2326]
[1731846670075,7.85663639,233.2,233.01,20.0]
[1731846670273,4.2883,233.19,233.02,12.5426]
[1731846670469,4.2883,233.19,233.03,32.1825]
[1731846671164,4.2872,233.25,233.07,0.1]
[1731846671367,4.2872,233.25,233.08,32.1825]
[1731846671568,10.7178,233.26,233.09,15.0155]
[1731846672692,12.0981,233.29,233.09,15.0155]
[1731846672877,33.5314,233.29,233.09,15.0155]
[1731846673192,0.09367462,233.27,233.09,15.0155]
[1731846673486,20.0,233.28,233.09,15.0155]
[1731846674268,20.0,233.26,233.09,15.0155]
[1731846674467,20.0,233.24,233.09,15.0155]
[1731846675007,20.0,233.22,233.09,15.0155]
[1731846675689,23.776884,233.24,233.09,15.0155]
[1731846676082,20.0,233.23,233.09,15.0155]
[1731846676480,20.0,233.23,233.1,13.2877]
[1731846677297,63.84295944,233.32,233.12,31.4932]
[1731846677491,63.84295944,233.32,233.12,31.5932]
[1731846677787,63.84295944,233.32,233.12,31.4932]
[1731846678391,4.47997462,233.3,233.12,31.4932]
[1731846678682,24.12153862,233.28,233.12,31.4932]
[1731846678888,0.21916462,233.24,233.12,31.4932]
[1731846679084,0.09367462,233.22,233.12,31.4932]
[1731846679479,23.776884,233.22,233.12,31.4932]
[1731846679705,20.0,233.23,233.12,31.4932]
[1731846680170,0.09367462,233.29,233.12,31.4932]
[1731846680371,0.09367462,233.27,233.12,42.2172]
[1731846680573,20.09367462,233.27,233.12,42.2172]
[1731846680764,20.09367462,233.27,233.12,31.4932]
[1731846680965,20.0,233.23,233.12,31.4932]
[1731846681171,20.0,233.21,233.12,31.4932]
[1731846681370,20.0,233.19,233.12,31.4932]
[1731846681793,23.776884,233.16,233.12,31.4932]
[1731846682000,20.0,233.15,233.12,31.4932]
[1731846682289,0.25098,233.24,233.12,31.4932]
[1731846682488,20.0,233.2,233.12,31.4932]
[1731846682893,23.776884,233.19,233.12,31.4932]
[1731846683111,20.0,233.18,233.12,31.4932]
[1731846683393,23.776884,233.19,233.12,31.4932]
[1731846683573,43.776884,233.21,233.12,31.4932]
[1731846684685,20.0,233.18,233.12,31.4932]
[1731846685793,4.2887,233.17,233.12,31.4932]
[1731846688103,15.0039,233.27,233.12,31.4932]
[1731846688783,0.09367462,233.26,233.12,31.4932]
[1731846689408,43.87055862,233.26,233.12,31.4932]
[1731846689717,0.09367462,233.24,233.12,31.4932]
[1731846690382,0.09367462,233.22,233.12,31.4932]
[1731846690583,23.776884,233.2,233.12,31.4932]
[1731846690984,20.0,233.19,233.12,31.4932]
[1731846691488,4.2876,233.23,233.12,31.4932]
[1731846692381,0.09367462,233.25,233.12,31.4932]
[1731846692589,23.776884,233.22,233.12,31.4932]
[1731846692786,20.0,233.21,233.12,31.4932]
[1731846693704,4.2881,233.2,233.12,31.4932]
[1731846695093,23.776884,233.19,233.12,31.4932]
[1731846697021,4.2885,233.18,233.12,31.4932]
[1731846697399,4.2882,233.2,233.12,46.5067]
[1731846697596,4.287,233.26,233.12,46.5067]
[1731846698811,0.09367462,233.3,233.12,46.5067]
[1731846699134,0.09367462,233.28,233.12,31.4932]
[1731846699813,0.09367462,233.26,233.12,31.4932]
[1731846699996,20.09367462,233.24,233.12,31.4932]
[1731846700517,24.38137462,233.22,233.12,31.4932]
[1731846700727,20.0,233.2,233.12,31.4932]
[1731846702303,4.2883,233.19,233.12,31.4932]
[1731846702901,10.7174,233.27,233.12,46.5066]
[1731846703203,0.09367462,233.26,233.12,31.4932]
[1731846704125,0.09367462,233.24,233.12,31.4932]
[1731846704331,24.2877,233.22,233.12,31.4932]
[1731846704523,4.2877,233.22,233.12,31.4932]
[1731846704928,4.2877,233.22,233.12,46.5066]
[1731846706012,0.09367462,233.29,233.12,46.5066]
[1731846706526,20.0,233.27,233.13,12.6502]
[1731846706704,20.0,233.25,233.13,12.6502]
[1731846707108,20.0,233.27,233.13,12.6502]
[1731846707536,20.0,233.25,233.14,15.0123]
[1731846708635,4.2874,233.24,233.14,15.0123]
[1731846711748,23.776884,233.28,233.14,15.0123]
[1731846712247,20.0,233.27,233.14,15.0123]
[1731846713540,4.287,233.26,233.14,15.0123]
[1731846714638,4.287,233.26,233.15,32.5836]